[Event "*** Titled Tuesday 3|2 Blitz"]
[Site "Chess.com"]
[Date "2015.10.06"]
[Round "1"]
[White "IMRosen"]
[Black "jefferyx"]
[Result "0-1"]
[WhiteElo "2193"]
[BlackElo "2556"]
[TimeControl "180+2"]
[EndTime "11:06:30 PDT"]
[Termination "jefferyx won by resignation"]

1. e4 {[%clk 0:02:46]} 1... a6 {[%clk 0:03:01]} 2. c4 {[%clk 0:02:41.8]} 2... e5
{[%clk 0:02:59.9]} 3. Nf3 {[%clk 0:02:43.7]} 3... Nc6 {[%clk 0:02:59.8]} 4. d4
{[%clk 0:02:44.6]} 4... exd4 {[%clk 0:03:00.5]} 5. Nxd4 {[%clk 0:02:46.5]} 5...
Nf6 {[%clk 0:02:57.2]} 6. Nxc6 {[%clk 0:02:39.8]} 6... bxc6 {[%clk 0:02:57]} 7.
Bd3 {[%clk 0:02:41.3]} 7... Bc5 {[%clk 0:02:53.6]} 8. O-O {[%clk 0:02:40.3]}
8... d6 {[%clk 0:02:54.1]} 9. Qf3 {[%clk 0:02:34.3]} 9... Ng4 {[%clk 0:02:53.3]}
10. Qg3 {[%clk 0:02:31.1]} 10... h5 {[%clk 0:02:46.3]} 11. Be2 {[%clk
0:01:59.8]} 11... Qf6 {[%clk 0:02:43.1]} 12. Bxg4 {[%clk 0:01:41]} 12... hxg4
{[%clk 0:02:43.5]} 13. Nc3 {[%clk 0:01:25]} 13... Rb8 {[%clk 0:02:43.8]} 14. Rb1
{[%clk 0:01:24.5]} 14... Bd4 {[%clk 0:02:39.4]} 15. Bd2 {[%clk 0:01:24]} 15...
Be5 {[%clk 0:02:38.3]} 16. f4 {[%clk 0:01:21.9]} 16... gxf3 {[%clk 0:02:40.2]}
17. Qxf3 {[%clk 0:01:17.4]} 17... Bxh2+ {[%clk 0:02:12]} 18. Kf2 {[%clk
0:01:16.3]} 18... Bg3+ {[%clk 0:02:13.1]} 19. Ke2 {[%clk 0:01:14.7]} 19... Qxf3+
{[%clk 0:02:13.2]} 20. Rxf3 {[%clk 0:01:15.5]} 20... Bg4 {[%clk 0:02:12.8]} 21.
b3 {[%clk 0:01:11.9]} 21... Rh2 {[%clk 0:02:11.6]} 22. Rg1 {[%clk 0:01:11.8]}
22... Kd7 {[%clk 0:02:06.8]} 23. Ke3 {[%clk 0:01:11.2]} 23... Bxf3 {[%clk
0:02:07.7]} 24. Kxf3 {[%clk 0:01:13.1]} 24... Be5 {[%clk 0:02:08.6]} 25. Ne2
{[%clk 0:01:12.6]} 25... Re8 {[%clk 0:02:09.2]} 26. Be3 {[%clk 0:01:11.2]} 26...
Re6 {[%clk 0:02:09.8]} 27. Nc1 {[%clk 0:01:06.4]} 27... Rf6+ {[%clk 0:02:10.4]}
28. Ke2 {[%clk 0:01:08]} 28... Rg6 {[%clk 0:02:11.7]} 29. Kf3 {[%clk 0:01:09.3]}
29... Rg3+ {[%clk 0:02:04.7]} 30. Kf2 {[%clk 0:01:10.2]} 30... Rh4 {[%clk
0:01:49.9]} 31. Ne2 {[%clk 0:01:06.2]} 31... Rg6 {[%clk 0:01:49.5]} 32. Nc1
{[%clk 0:00:28.3]} 32... Rxe4 {[%clk 0:01:46.7]} 33. Rh1 {[%clk 0:00:30]} 33...
Rf6+ {[%clk 0:01:45.8]} 34. Ke2 {[%clk 0:00:30.7]} 34... Bf4 {[%clk 0:01:38.3]}
35. Rh3 {[%clk 0:00:31.3]} 35... Rfe6 {[%clk 0:01:39.5]} 36. Kf3 {[%clk
0:00:32.9]} 36... Bxe3 {[%clk 0:01:39.7]} 0-1

[Event "*** Titled Tuesday 3|2 Blitz"]
[Site "Chess.com"]
[Date "2015.10.06"]
[Round "1"]
[White "Mornar1951"]
[Black "Quinten94"]
[Result "1-0"]
[WhiteElo "2622"]
[BlackElo "2251"]
[TimeControl "180+2"]
[EndTime "11:06:58 PDT"]
[Termination "Mornar1951 won by resignation"]

1. Nf3 {[%clk 0:02:31.9]} 1... d5 {[%clk 0:03:00.4]} 2. d4 {[%clk 0:02:30.5]}
2... Nf6 {[%clk 0:03:00.9]} 3. c4 {[%clk 0:02:31.9]} 3... c6 {[%clk 0:03:02.2]}
4. Nbd2 {[%clk 0:02:31.3]} 4... g6 {[%clk 0:03:02.7]} 5. e3 {[%clk 0:02:31.9]}
5... Bg7 {[%clk 0:03:03.7]} 6. Be2 {[%clk 0:02:33.3]} 6... O-O {[%clk
0:03:04.9]} 7. O-O {[%clk 0:02:35]} 7... Bf5 {[%clk 0:02:59.9]} 8. b4 {[%clk
0:02:35.7]} 8... Ne4 {[%clk 0:03:00.7]} 9. Bb2 {[%clk 0:02:35.9]} 9... Nxd2
{[%clk 0:02:46.3]} 10. Qxd2 {[%clk 0:02:32.1]} 10... a5 {[%clk 0:02:38.3]} 11.
Bc3 {[%clk 0:02:24.1]} 11... axb4 {[%clk 0:02:37.8]} 12. Bxb4 {[%clk 0:02:26]}
12... Na6 {[%clk 0:02:36.5]} 13. cxd5 {[%clk 0:02:18.4]} 13... c5 {[%clk
0:01:46.4]} 14. Bxa6 {[%clk 0:02:10.5]} 14... Rxa6 {[%clk 0:01:41.1]} 15. Bxc5
{[%clk 0:02:05.6]} 15... Qxd5 {[%clk 0:01:41.5]} 16. Bxe7 {[%clk 0:02:02.9]}
16... Rfa8 {[%clk 0:01:41.2]} 17. a3 {[%clk 0:01:57.3]} 17... h6 {[%clk
0:00:58.7]} 18. Rac1 {[%clk 0:01:46.8]} 18... Re6 {[%clk 0:00:32.6]} 19. Bb4
{[%clk 0:01:41.6]} 19... Re4 {[%clk 0:00:33.5]} 20. Ne1 {[%clk 0:01:35.4]} 20...
Rh4 {[%clk 0:00:32.9]} 21. f3 {[%clk 0:01:31.4]} 21... Re8 {[%clk 0:00:31.5]}
22. Qf2 {[%clk 0:01:20.7]} 22... g5 {[%clk 0:00:28.5]} 23. Bc5 {[%clk
0:01:09.2]} 23... b6 {[%clk 0:00:22.2]} 24. e4 {[%clk 0:01:09.9]} 24... Bxe4
{[%clk 0:00:22.3]} 25. fxe4 {[%clk 0:01:11.8]} 25... Rexe4 {[%clk 0:00:21.3]}
26. Bxb6 {[%clk 0:01:07.5]} 26... Qd6 {[%clk 0:00:21.5]} 27. Bc7 {[%clk
0:01:02.9]} 27... Qd7 {[%clk 0:00:19.2]} 28. Be5 {[%clk 0:01:01.9]} 1-0

[Event "*** Titled Tuesday 3|2 Blitz"]
[Site "Chess.com"]
[Date "2015.10.06"]
[Round "1"]
[White "BIG_Pirate"]
[Black "EltajSafarli"]
[Result "0-1"]
[WhiteElo "2275"]
[BlackElo "2699"]
[TimeControl "180+2"]
[EndTime "11:07:08 PDT"]
[Termination "EltajSafarli won by resignation"]

1. e4 {[%clk 0:03:00.6]} 1... c5 {[%clk 0:03:00]} 2. Nf3 {[%clk 0:03:01.1]} 2...
e6 {[%clk 0:03:01.4]} 3. d4 {[%clk 0:03:02.1]} 3... cxd4 {[%clk 0:03:03.3]} 4.
Nxd4 {[%clk 0:03:03.4]} 4... Nf6 {[%clk 0:03:04.4]} 5. Nc3 {[%clk 0:03:04.1]}
5... Nc6 {[%clk 0:03:05.6]} 6. f4 {[%clk 0:02:59]} 6... Bb4 {[%clk 0:02:59.5]}
7. Nxc6 {[%clk 0:02:49.4]} 7... bxc6 {[%clk 0:02:55.8]} 8. Bd3 {[%clk
0:02:48.4]} 8... d5 {[%clk 0:02:56.1]} 9. e5 {[%clk 0:02:34.7]} 9... Nd7 {[%clk
0:02:55.7]} 10. Bd2 {[%clk 0:02:28.7]} 10... O-O {[%clk 0:02:55.7]} 11. a3
{[%clk 0:02:29.1]} 11... Ba5 {[%clk 0:02:52.9]} 12. O-O {[%clk 0:02:15.7]} 12...
Ba6 {[%clk 0:02:53.9]} 13. Bxa6 {[%clk 0:01:59.3]} 13... Qb6+ {[%clk 0:02:54.3]}
14. Kh1 {[%clk 0:02:00.6]} 14... Qxa6 {[%clk 0:02:56.2]} 15. Ne2 {[%clk
0:01:50.1]} 15... Rab8 {[%clk 0:02:51.3]} 16. Bxa5 {[%clk 0:01:42.6]} 16... Qxa5
{[%clk 0:02:53.2]} 17. b4 {[%clk 0:01:43.1]} 17... Qc7 {[%clk 0:02:54.8]} 18. c3
{[%clk 0:01:17]} 18... c5 {[%clk 0:02:55.3]} 19. Qd3 {[%clk 0:01:15.4]} 19... a5
{[%clk 0:02:56.1]} 20. Rab1 {[%clk 0:01:11]} 20... Rfc8 {[%clk 0:02:56.4]} 21.
b5 {[%clk 0:01:10.5]} 21... a4 {[%clk 0:02:52.7]} 22. c4 {[%clk 0:01:09.3]}
22... dxc4 {[%clk 0:02:53.4]} 23. Qxc4 {[%clk 0:01:10.4]} 23... Nb6 {[%clk
0:02:55.3]} 24. Qc3 {[%clk 0:01:08.5]} 24... Nd5 {[%clk 0:02:50]} 25. Qg3 {[%clk
0:00:56.1]} 25... Qa5 {[%clk 0:02:46.2]} 26. f5 {[%clk 0:00:49]} 26... exf5
{[%clk 0:02:48.1]} 27. Rxf5 {[%clk 0:00:37.3]} 27... Rxb5 {[%clk 0:02:26.2]} 28.
Rbf1 {[%clk 0:00:37.9]} 28... Rb3 {[%clk 0:02:07.7]} 29. Qg5 {[%clk 0:00:32.4]}
29... Qd8 {[%clk 0:01:51.6]} 30. Qxd8+ {[%clk 0:00:22.8]} 30... Rxd8 {[%clk
0:01:53.5]} 31. Rxf7 {[%clk 0:00:23.7]} 31... Ne3 {[%clk 0:01:54.9]} 32. R1f3
{[%clk 0:00:21.4]} 32... h6 {[%clk 0:01:22.5]} 33. e6 {[%clk 0:00:22.5]} 33...
Rb1+ {[%clk 0:01:23.6]} 34. Ng1 {[%clk 0:00:22.8]} 34... Rdd1 {[%clk 0:01:25]}
35. h3 {[%clk 0:00:21.8]} 35... Rxg1+ {[%clk 0:01:25.7]} 0-1

[Event "*** Titled Tuesday 3|2 Blitz"]
[Site "Chess.com"]
[Date "2015.10.06"]
[Round "1"]
[White "GGuseinov"]
[Black "ruifeng"]
[Result "1-0"]
[WhiteElo "2501"]
[BlackElo "2128"]
[TimeControl "180+2"]
[EndTime "11:07:18 PDT"]
[Termination "GGuseinov won by resignation"]

1. e4 {[%clk 0:02:13.2]} 1... e6 {[%clk 0:02:58.5]} 2. Nf3 {[%clk 0:02:14.8]}
2... d5 {[%clk 0:02:58.6]} 3. Nc3 {[%clk 0:02:16.5]} 3... dxe4 {[%clk
0:02:56.9]} 4. Nxe4 {[%clk 0:02:17.3]} 4... b6 {[%clk 0:02:58.2]} 5. d4 {[%clk
0:02:18.3]} 5... Bb7 {[%clk 0:02:59]} 6. Bd3 {[%clk 0:02:19.9]} 6... Nd7 {[%clk
0:03:00.1]} 7. Qe2 {[%clk 0:02:18.7]} 7... Ngf6 {[%clk 0:03:00.6]} 8. Neg5
{[%clk 0:02:19.5]} 8... Be7 {[%clk 0:02:51.3]} 9. Nxf7 {[%clk 0:02:17.2]} 9...
Kxf7 {[%clk 0:02:46.6]} 10. Ng5+ {[%clk 0:02:16.8]} 10... Ke8 {[%clk 0:02:47.7]}
11. Nxe6 {[%clk 0:02:06.8]} 11... Qb8 {[%clk 0:02:14.8]} 12. Nxg7+ {[%clk
0:02:04.5]} 12... Kd8 {[%clk 0:02:15.5]} 13. Bf4 {[%clk 0:01:46]} 13... Bxg2
{[%clk 0:01:59.1]} 14. Ne6+ {[%clk 0:01:35.2]} 14... Kc8 {[%clk 0:01:59]} 15.
Rg1 {[%clk 0:01:28.4]} 15... Bc6 {[%clk 0:00:47.1]} 16. Nxc7 {[%clk 0:01:14.5]}
16... Bd8 {[%clk 0:00:15.4]} 17. Ne6 {[%clk 0:01:07.6]} 17... Re8 {[%clk
0:00:10.6]} 18. Bxb8 {[%clk 0:01:01.9]} 18... Rxb8 {[%clk 0:00:11.1]} 19. Ba6+
{[%clk 0:01:01.1]} 19... Bb7 {[%clk 0:00:12.1]} 20. Qc4+ {[%clk 0:00:59.5]}
20... Nc5 {[%clk 0:00:13.1]} 21. dxc5 {[%clk 0:00:57.4]} 21... b5 {[%clk
0:00:13.9]} 22. Bxb7+ {[%clk 0:00:48.6]} 22... Rxb7 {[%clk 0:00:14.2]} 23. Qb3
{[%clk 0:00:46.2]} 23... Rbe7 {[%clk 0:00:13.5]} 24. O-O-O {[%clk 0:00:47.2]}
24... Rxe6 {[%clk 0:00:14.7]} 25. Qxb5 {[%clk 0:00:47.9]} 25... Bc7 {[%clk
0:00:14.7]} 26. Rg7 {[%clk 0:00:40.4]} 26... R6e7 {[%clk 0:00:15.2]} 27. Rxe7
{[%clk 0:00:40.1]} 27... Rxe7 {[%clk 0:00:15.7]} 28. c6 {[%clk 0:00:41.5]} 28...
Bb6 {[%clk 0:00:16.3]} 29. Qf5+ {[%clk 0:00:41.6]} 1-0

[Event "*** Titled Tuesday 3|2 Blitz"]
[Site "Chess.com"]
[Date "2015.10.06"]
[Round "1"]
[White "GregShahade"]
[Black "silverback96"]
[Result "1/2-1/2"]
[WhiteElo "2299"]
[BlackElo "1888"]
[TimeControl "180+2"]
[EndTime "11:07:20 PDT"]
[Termination "Game drawn by repetition"]

1. e4 {[%clk 0:02:53.1]} 1... e6 {[%clk 0:02:59.8]} 2. d4 {[%clk 0:02:52.8]}
2... d5 {[%clk 0:03:00.1]} 3. Nd2 {[%clk 0:02:53.2]} 3... Nf6 {[%clk 0:03:00.1]}
4. e5 {[%clk 0:02:53.7]} 4... Nfd7 {[%clk 0:03:01.2]} 5. c3 {[%clk 0:02:54.3]}
5... c5 {[%clk 0:03:02.8]} 6. Bd3 {[%clk 0:02:55.3]} 6... Nc6 {[%clk 0:03:04.2]}
7. Ne2 {[%clk 0:02:56.2]} 7... cxd4 {[%clk 0:03:04.7]} 8. cxd4 {[%clk
0:02:58.1]} 8... f6 {[%clk 0:03:05.3]} 9. exf6 {[%clk 0:02:59.1]} 9... Nxf6
{[%clk 0:03:05.9]} 10. O-O {[%clk 0:03:00.1]} 10... Bd6 {[%clk 0:03:07]} 11. Nf3
{[%clk 0:03:01]} 11... O-O {[%clk 0:03:08.4]} 12. Bf4 {[%clk 0:03:01.2]} 12...
Bxf4 {[%clk 0:03:08.6]} 13. Nxf4 {[%clk 0:03:03.1]} 13... Ne4 {[%clk 0:03:09.3]}
14. g3 {[%clk 0:02:54.1]} 14... g5 {[%clk 0:03:09.7]} 15. Nh5 {[%clk 0:02:45.1]}
15... Bd7 {[%clk 0:03:09.4]} 16. Ne5 {[%clk 0:02:27.8]} 16... Be8 {[%clk
0:03:10.6]} 17. Qg4 {[%clk 0:02:01.8]} 17... Nxd4 {[%clk 0:02:26.5]} 18. Bxe4
{[%clk 0:01:54.7]} 18... dxe4 {[%clk 0:02:27.1]} 19. Rad1 {[%clk 0:01:46]} 19...
Bg6 {[%clk 0:01:52.1]} 20. Rxd4 {[%clk 0:01:11.1]} 20... Qxd4 {[%clk 0:01:51.6]}
21. Qxe6+ {[%clk 0:01:11.9]} 21... Kh8 {[%clk 0:01:28.8]} 22. Nxg6+ {[%clk
0:01:08.8]} 22... hxg6 {[%clk 0:01:29.4]} 23. Qxg6 {[%clk 0:01:10.1]} 23... e3
{[%clk 0:01:08.7]} 24. Qh6+ {[%clk 0:01:08.1]} 24... Kg8 {[%clk 0:01:08.9]} 25.
Qg6+ {[%clk 0:01:06.1]} 25... Kh8 {[%clk 0:01:09.3]} 26. Qh6+ {[%clk 0:00:56]}
26... Kg8 {[%clk 0:01:10.5]} 27. Qg6+ {[%clk 0:00:31.9]} 27... Kh8 {[%clk
0:01:11.5]} 28. Qh6+ {[%clk 0:00:27.3]} 1/2-1/2

[Event "*** Titled Tuesday 3|2 Blitz"]
[Site "Chess.com"]
[Date "2015.10.06"]
[Round "1"]
[White "HustleStandard"]
[Black "talaicito"]
[Result "1-0"]
[WhiteElo "2356"]
[BlackElo "1991"]
[TimeControl "180+2"]
[EndTime "11:07:26 PDT"]
[Termination "HustleStandard won by resignation"]

1. d4 {[%clk 0:02:43.3]} 1... e6 {[%clk 0:03:00.7]} 2. Nf3 {[%clk 0:02:45]} 2...
f5 {[%clk 0:03:00.2]} 3. c4 {[%clk 0:02:46]} 3... Nf6 {[%clk 0:03:00.9]} 4. Nc3
{[%clk 0:02:46.3]} 4... Bb4 {[%clk 0:03:00.8]} 5. g3 {[%clk 0:02:42.3]} 5... O-O
{[%clk 0:02:56.9]} 6. Bg2 {[%clk 0:02:42.9]} 6... Ne4 {[%clk 0:02:57]} 7. Bd2
{[%clk 0:02:44.1]} 7... Bxc3 {[%clk 0:02:54]} 8. Bxc3 {[%clk 0:02:44.8]} 8...
Nxc3 {[%clk 0:02:54.2]} 9. bxc3 {[%clk 0:02:45]} 9... d6 {[%clk 0:02:54]} 10.
O-O {[%clk 0:02:45.4]} 10... Nc6 {[%clk 0:02:54.6]} 11. Qc2 {[%clk 0:02:43.1]}
11... e5 {[%clk 0:02:49.2]} 12. Rab1 {[%clk 0:02:44.4]} 12... Qe8 {[%clk
0:02:41.9]} 13. dxe5 {[%clk 0:01:56.5]} 13... dxe5 {[%clk 0:02:42]} 14. Rfd1
{[%clk 0:01:57.4]} 14... Na5 {[%clk 0:01:56]} 15. c5 {[%clk 0:01:53.4]} 15... f4
{[%clk 0:01:11.2]} 16. Qe4 {[%clk 0:01:42.3]} 16... Bf5 {[%clk 0:00:52.2]} 17.
Qd5+ {[%clk 0:01:43.4]} 17... Be6 {[%clk 0:00:45.3]} 18. Qxe5 {[%clk 0:01:43.5]}
18... fxg3 {[%clk 0:00:45.7]} 19. hxg3 {[%clk 0:01:44.2]} 19... Bxa2 {[%clk
0:00:37.3]} 20. Ra1 {[%clk 0:01:40.1]} 20... Bb3 {[%clk 0:00:35.2]} 21. Qxe8
{[%clk 0:01:37.3]} 21... Raxe8 {[%clk 0:00:30.7]} 22. Rd7 {[%clk 0:01:38.5]}
22... b6 {[%clk 0:00:22.6]} 23. Rxc7 {[%clk 0:01:39.9]} 23... Rxe2 {[%clk
0:00:22.4]} 24. Rxa7 {[%clk 0:01:41]} 24... Bd5 {[%clk 0:00:20.3]} 25. Nd4
{[%clk 0:01:26.9]} 25... Bxg2 {[%clk 0:00:18.9]} 26. Nxe2 {[%clk 0:01:27.2]}
26... Nb3 {[%clk 0:00:18.2]} 27. Kxg2 {[%clk 0:01:28.6]} 27... Nxa1 {[%clk
0:00:18.7]} 28. Rxa1 {[%clk 0:01:26.5]} 28... bxc5 {[%clk 0:00:19.9]} 29. Ra5
{[%clk 0:01:28.2]} 29... Re8 {[%clk 0:00:19.3]} 30. Nf4 {[%clk 0:01:29.5]} 30...
Re5 {[%clk 0:00:18.9]} 31. Nd3 {[%clk 0:01:29.9]} 31... Rd5 {[%clk 0:00:19.4]}
32. Nxc5 {[%clk 0:01:30.3]} 32... h5 {[%clk 0:00:20.6]} 33. Ra8+ {[%clk
0:01:24.9]} 33... Kh7 {[%clk 0:00:21.4]} 34. Ne4 {[%clk 0:01:26.1]} 34... Rd3
{[%clk 0:00:20.9]} 35. Kf1 {[%clk 0:01:24]} 35... Kg6 {[%clk 0:00:20]} 36. Ke2
{[%clk 0:01:25.6]} 36... Rd7 {[%clk 0:00:19.6]} 37. Ke3 {[%clk 0:01:26.3]} 37...
Re7 {[%clk 0:00:20.3]} 38. c4 {[%clk 0:01:27.7]} 38... Kf5 {[%clk 0:00:20.9]}
39. Rf8+ {[%clk 0:01:28]} 39... Ke5 {[%clk 0:00:20.8]} 40. c5 {[%clk 0:01:29.7]}
40... Kd5 {[%clk 0:00:21.5]} 41. Rf5+ {[%clk 0:01:29.9]} 41... Kc6 {[%clk
0:00:19.3]} 42. Rxh5 {[%clk 0:01:31.1]} 1-0

[Event "*** Titled Tuesday 3|2 Blitz"]
[Site "Chess.com"]
[Date "2015.10.06"]
[Round "1"]
[White "Arashy_CC"]
[Black "armago"]
[Result "0-1"]
[WhiteElo "2365"]
[BlackElo "2042"]
[TimeControl "180+2"]
[EndTime "11:07:28 PDT"]
[Termination "armago won by resignation"]

1. c4 {[%clk 0:03:01.4]} 1... Nf6 {[%clk 0:02:59.4]} 2. Nc3 {[%clk 0:03:00.4]}
2... g6 {[%clk 0:02:57.7]} 3. e4 {[%clk 0:03:00]} 3... d6 {[%clk 0:02:57.6]} 4.
d4 {[%clk 0:02:58.9]} 4... Bg7 {[%clk 0:02:58.2]} 5. Bg5 {[%clk 0:03:00.5]} 5...
O-O {[%clk 0:02:58]} 6. Qd2 {[%clk 0:03:01.7]} 6... Na6 {[%clk 0:02:59]} 7. Nf3
{[%clk 0:03:02]} 7... c5 {[%clk 0:02:54.2]} 8. d5 {[%clk 0:03:02.2]} 8... e6
{[%clk 0:02:55.5]} 9. Be2 {[%clk 0:02:56.3]} 9... Re8 {[%clk 0:02:56.1]} 10. O-O
{[%clk 0:02:56.8]} 10... exd5 {[%clk 0:02:53.6]} 11. exd5 {[%clk 0:02:58.7]}
11... Nc7 {[%clk 0:02:46.1]} 12. a4 {[%clk 0:02:57.2]} 12... Na6 {[%clk
0:02:40.2]} 13. h3 {[%clk 0:02:52.3]} 13... Nb4 {[%clk 0:02:40.2]} 14. Bf4
{[%clk 0:02:22.4]} 14... a6 {[%clk 0:02:39.7]} 15. Rfe1 {[%clk 0:02:16.1]} 15...
Bf5 {[%clk 0:02:34.9]} 16. Nh4 {[%clk 0:02:17.4]} 16... Ne4 {[%clk 0:02:29.3]}
17. Nxe4 {[%clk 0:02:07.5]} 17... Bxe4 {[%clk 0:02:29.9]} 18. Bf3 {[%clk
0:01:26.5]} 18... Nc2 {[%clk 0:02:13.3]} 19. Bxe4 {[%clk 0:00:41.5]} 19... Nxa1
{[%clk 0:02:09.8]} 20. Nf3 {[%clk 0:00:31]} 20... Nb3 {[%clk 0:02:10.3]} 21. Qc2
{[%clk 0:00:27.9]} 21... Nd4 {[%clk 0:02:10.4]} 22. Nxd4 {[%clk 0:00:26.6]}
22... Bxd4 {[%clk 0:02:11.9]} 23. Rd1 {[%clk 0:00:15.7]} 23... Qf6 {[%clk
0:02:07.2]} 24. Bg3 {[%clk 0:00:16.3]} 24... Be5 {[%clk 0:02:05.8]} 25. Kh2
{[%clk 0:00:16.3]} 25... Bxg3+ {[%clk 0:02:04.8]} 26. fxg3 {[%clk 0:00:18.2]}
26... Re5 {[%clk 0:01:59.5]} 27. Bd3 {[%clk 0:00:19.3]} 27... Rae8 {[%clk
0:01:58.6]} 28. Rf1 {[%clk 0:00:20.4]} 28... Qe7 {[%clk 0:01:59.3]} 29. Qb3
{[%clk 0:00:20.3]} 29... Re3 {[%clk 0:01:58]} 30. Qd1 {[%clk 0:00:20.7]} 30...
Qe5 {[%clk 0:01:57.9]} 31. Rf3 {[%clk 0:00:22]} 31... Rxf3 {[%clk 0:01:57.6]}
32. Qxf3 {[%clk 0:00:23.9]} 32... Qe3 {[%clk 0:01:57.5]} 33. Qf1 {[%clk
0:00:24.3]} 33... Qd2 {[%clk 0:01:51.2]} 34. b3 {[%clk 0:00:24.1]} 34... Re1
{[%clk 0:01:48.3]} 35. Qf3 {[%clk 0:00:20.4]} 35... Re3 {[%clk 0:01:48.1]} 36.
Qf6 {[%clk 0:00:21.5]} 36... Qxd3 {[%clk 0:01:42.3]} 37. Qxd6 {[%clk 0:00:22.3]}
37... Qd4 {[%clk 0:01:39.4]} 38. Qb8+ {[%clk 0:00:18.7]} 38... Kg7 {[%clk
0:01:39.1]} 39. d6 {[%clk 0:00:20]} 39... Qe5 {[%clk 0:01:37.7]} 0-1

[Event "*** Titled Tuesday 3|2 Blitz"]
[Site "Chess.com"]
[Date "2015.10.06"]
[Round "1"]
[White "gmjlh"]
[Black "MattyDPerrine"]
[Result "1-0"]
[WhiteElo "2609"]
[BlackElo "2251"]
[TimeControl "180+2"]
[EndTime "11:07:38 PDT"]
[Termination "gmjlh won by resignation"]

1. e4 {[%clk 0:02:54.1]} 1... c5 {[%clk 0:02:59.8]} 2. Nf3 {[%clk 0:02:55.1]}
2... e6 {[%clk 0:02:54.1]} 3. c4 {[%clk 0:02:55.2]} 3... Nc6 {[%clk 0:02:54.2]}
4. Nc3 {[%clk 0:02:55.9]} 4... Nd4 {[%clk 0:02:49.5]} 5. Be2 {[%clk 0:02:55.1]}
5... g6 {[%clk 0:02:50.6]} 6. Nxd4 {[%clk 0:02:48]} 6... cxd4 {[%clk 0:02:52.5]}
7. Nb5 {[%clk 0:02:48.9]} 7... Qb6 {[%clk 0:02:52.6]} 8. O-O {[%clk 0:02:47.5]}
8... a6 {[%clk 0:02:53.7]} 9. Na3 {[%clk 0:02:48.8]} 9... Bg7 {[%clk 0:02:46.1]}
10. d3 {[%clk 0:02:49.7]} 10... Ne7 {[%clk 0:02:44.6]} 11. Rb1 {[%clk
0:02:50.8]} 11... d5 {[%clk 0:02:42.6]} 12. b4 {[%clk 0:02:38.5]} 12... O-O
{[%clk 0:02:33.5]} 13. Bf3 {[%clk 0:02:33.4]} 13... dxe4 {[%clk 0:02:13]} 14.
Bxe4 {[%clk 0:02:34.3]} 14... f5 {[%clk 0:02:09.7]} 15. Bf3 {[%clk 0:02:35.2]}
15... e5 {[%clk 0:02:11.1]} 16. Bg5 {[%clk 0:02:31.6]} 16... Bf6 {[%clk
0:02:04.2]} 17. c5 {[%clk 0:02:32.6]} 17... Qc7 {[%clk 0:01:59.5]} 18. Bxf6
{[%clk 0:02:17.5]} 18... Rxf6 {[%clk 0:02:01.4]} 19. Re1 {[%clk 0:02:18.5]}
19... g5 {[%clk 0:01:02.8]} 20. Qe2 {[%clk 0:01:30]} 20... e4 {[%clk 0:00:48.2]}
21. dxe4 {[%clk 0:01:13.1]} 21... g4 {[%clk 0:00:48.6]} 22. exf5 {[%clk
0:01:14.8]} 22... gxf3 {[%clk 0:00:40.7]} 23. Qxe7 {[%clk 0:01:16.2]} 23... Qxe7
{[%clk 0:00:42.6]} 24. Rxe7 {[%clk 0:01:17.5]} 24... Bxf5 {[%clk 0:00:44.5]} 25.
Rd1 {[%clk 0:01:19]} 25... Rd8 {[%clk 0:00:25.9]} 26. Nc4 {[%clk 0:01:18]} 26...
Bc2 {[%clk 0:00:22.5]} 27. Rd2 {[%clk 0:01:18.2]} 27... d3 {[%clk 0:00:24]} 28.
Rxb7 {[%clk 0:01:00.6]} 28... fxg2 {[%clk 0:00:19.5]} 29. Ne3 {[%clk 0:00:55.6]}
29... Bb1 {[%clk 0:00:20.1]} 30. b5 {[%clk 0:00:41.4]} 30... axb5 {[%clk
0:00:17.2]} 31. Rxb5 {[%clk 0:00:43.3]} 31... Bxa2 {[%clk 0:00:19.1]} 32. Rxa2
{[%clk 0:00:43.6]} 32... d2 {[%clk 0:00:21]} 33. Rb1 {[%clk 0:00:44.7]} 33...
Rf3 {[%clk 0:00:17.9]} 34. Rd1 {[%clk 0:00:44.7]} 34... h5 {[%clk 0:00:17.5]}
35. Raxd2 {[%clk 0:00:45.3]} 1-0

[Event "*** Titled Tuesday 3|2 Blitz"]
[Site "Chess.com"]
[Date "2015.10.06"]
[Round "1"]
[White "gmsakk"]
[Black "Saitama_Hero"]
[Result "1-0"]
[WhiteElo "2488"]
[BlackElo "2124"]
[TimeControl "180+2"]
[EndTime "11:07:55 PDT"]
[Termination "gmsakk won by checkmate"]

1. d4 {[%clk 0:03:01.1]} 1... Nf6 {[%clk 0:03:00]} 2. c4 {[%clk 0:03:01.2]} 2...
g6 {[%clk 0:03:01.4]} 3. Nc3 {[%clk 0:03:02.2]} 3... Bg7 {[%clk 0:03:02.8]} 4.
e4 {[%clk 0:03:03.2]} 4... O-O {[%clk 0:03:04.4]} 5. e5 {[%clk 0:03:03.2]} 5...
Ne8 {[%clk 0:03:04.1]} 6. f4 {[%clk 0:03:04.4]} 6... d6 {[%clk 0:03:05.1]} 7.
Nf3 {[%clk 0:03:05.6]} 7... c5 {[%clk 0:03:06.4]} 8. d5 {[%clk 0:03:05.4]} 8...
Bg4 {[%clk 0:02:53.5]} 9. exd6 {[%clk 0:03:04.6]} 9... Nxd6 {[%clk 0:02:38.1]}
10. h3 {[%clk 0:03:04.3]} 10... Bxf3 {[%clk 0:02:26.8]} 11. Qxf3 {[%clk
0:03:05]} 11... Nf5 {[%clk 0:02:23.6]} 12. Bd3 {[%clk 0:03:04.1]} 12... Nd4
{[%clk 0:02:08.3]} 13. Qf2 {[%clk 0:03:02.3]} 13... e6 {[%clk 0:02:02.5]} 14.
O-O {[%clk 0:02:59.6]} 14... Na6 {[%clk 0:01:59.5]} 15. Be4 {[%clk 0:02:40]}
15... Qe7 {[%clk 0:01:44.8]} 16. Bd2 {[%clk 0:02:27.2]} 16... f5 {[%clk
0:01:36.8]} 17. Bb1 {[%clk 0:02:04]} 17... Nb4 {[%clk 0:01:38.2]} 18. Kh2 {[%clk
0:01:54.9]} 18... exd5 {[%clk 0:01:34.5]} 19. cxd5 {[%clk 0:01:54.1]} 19... Rad8
{[%clk 0:01:24.3]} 20. a3 {[%clk 0:01:54.9]} 20... Nb3 {[%clk 0:01:14.5]} 21.
axb4 {[%clk 0:01:56]} 21... Nxa1 {[%clk 0:01:16]} 22. bxc5 {[%clk 0:01:57.3]}
22... Nb3 {[%clk 0:01:15.2]} 23. Be3 {[%clk 0:01:58.7]} 23... Rfe8 {[%clk
0:01:12.9]} 24. Nd1 {[%clk 0:01:42.7]} 24... Rxd5 {[%clk 0:00:48.3]} 25. Ba2
{[%clk 0:01:42]} 25... Rd3 {[%clk 0:00:49.8]} 26. Qc2 {[%clk 0:01:39.8]} 26...
Rxe3 {[%clk 0:00:43.9]} 27. Nxe3 {[%clk 0:01:31.7]} 27... Qxe3 {[%clk
0:00:42.5]} 28. Rf3 {[%clk 0:01:32.6]} 28... Qd4 {[%clk 0:00:28.9]} 29. Qxb3+
{[%clk 0:01:28.6]} 29... Kh8 {[%clk 0:00:30]} 30. Qxb7 {[%clk 0:01:04.1]} 30...
Qxc5 {[%clk 0:00:30.6]} 31. b4 {[%clk 0:00:27.8]} 31... Qd4 {[%clk 0:00:23.6]}
32. b5 {[%clk 0:00:25.1]} 32... h5 {[%clk 0:00:23.4]} 33. Qf7 {[%clk 0:00:25.5]}
33... Re1 {[%clk 0:00:22]} 34. Qg8# {[%clk 0:00:26.3]} 1-0